Workbook

Sheet Consolidated
A1: Swami Vivekananda Youth Movement
A2: Vignyana Vahini Budget
A3: S.No | B3: Activities | C3: Budget 2012 2013 | D3: Budget 2013 2014 | E3: Budget 2014 2015
A4: A | B4: Personnel Cost | C4: 540000 | D4: 594000 | E4: 653400
A5: B | B5: Recurring Cost | C5: =C6+C7+C8+C9+C10 -> 943000 | D5: =D6+D7+D8+D9+D10 -> 1037300 | E5: =E6+E7+E8+E9+E10 -> 1141030
A6: B.1 | B6: Technical & resource support | C6: 373000 | D6: 410300 | E6: 451330
A7: B.2 | B7: Travel & Conveyance of Mobile lab | C7: 161000 | D7: 177100 | E7: 194810
A8: B.3 | B8: Capacity building | C8: 60000 | D8: 66000 | E8: 72600
A9: B.4 | B9: Events | C9: 258000 | D9: 283800 | E9: 312180
A10: B.5 | B10: Operational Expenses | C10: 91000 | D10: 100100 | E10: 110110
A11: C | B11: Capital cost | C11: 907000 | D11: 0 | E11: 0
B12: Total Budget | C12: =C4+C5+C11 -> 2390000 | D12: =D4+D5+D11 -> 1631300 | E12: =E4+E5+E11 -> 1794430
B13: Grand Total | C13: =SUM(C12:E12) -> 5815730
A15: Swami Vivekananda Youth Movement
A16: Vignyana Vahini Budget (%)
A17: S.No | B17: Activities | C17: Budget 2012 2013 (%) | D17: Budget 2013 2014 (%) | E17: Budget 2014 2015 (%)
A18: A | B18: Personnel Cost | C18: =540000/2390000% -> 22.59414226 | D18: =594000/1631300% -> 36.41267701 | E18: =653400/1794430% -> 36.41267701
A19: B | B19: Recurring Cost | C19: =943000/2390000% -> 39.45606695 | D19: =1037300/1631300% -> 63.58732299 | E19: =1141030/1794430% -> 63.58732299
A20: C | B20: Capital cost | C20: =907000/2390000% -> 37.94979079 | D20: 0 | E20: 0
B21: Total Budget | C21: =2390000/2390000% -> 100 | D21: =D18+D19+D20 -> 100 | E21: =E18+E19+E20 -> 100

Sheet Detailed
A1: Swami Vivekananda Youth Movement
A2: Vignyana Vahini Budget
A3: S.No | B3: Activities | C3: 2012 2013 1st Quarter | D3: 2012 2013 2nd Quarter | E3: 2012 2013 3rd Quarter | F3: 2012 2013 4th Quarter | G3: Budget 2012 2013 | H3: Budget 2013 2014 | I3: Budget 2014 2015
A4: A | B4: Personnel Cost | C4: =SUM(C5:C9) -> 135000 | D4: =SUM(D5:D9) -> 135000 | E4: 135000 | F4: 135000 | G4: 540000 | H4: 594000 | I4: 653400
A5: A.1 | B5: Program Manager (1) | C5: 45000 | D5: 45000 | E5: 45000 | F5: 45000 | G5: =SUM(C5:F5) -> 180000 | H5: =G5*11/10 -> 198000 | I5: =H5*11/10 -> 217800
A6: A.2 | B6: Program Coordinator (1) | C6: 30000 | D6: 30000 | E6: 30000 | F6: 30000 | G6: =SUM(C6:F6) -> 120000 | H6: =G6*11/10 -> 132000 | I6: 145200
A7: A.3 | B7: Facilitator (1) | C7: 22500 | D7: 22500 | E7: 22500 | F7: 22500 | G7: 90000 | H7: =G7*11/10 -> 99000 | I7: 108900
A8: A.4 | B8: Office Manager & Facilitator (1) | C8: 22500 | D8: 22500 | E8: 22500 | F8: 22500 | G8: 90000 | H8: =G8*11/10 -> 99000 | I8: 108900
A9: A.5 | B9: Sector Head (1) | C9: 15000 | D9: 15000 | E9: 15000 | F9: 15000 | G9: 60000 | H9: =G9*11/10 -> 66000 | I9: 72600
A10: B | B10: Recurring Cost | C10: =C11+C16+C19+C23+C28 -> 267600 | D10: =D11+D16+D19+D23+D28 -> 155400 | E10: 270100 | F10: 249900 | G10: 943000 | H10: 1037300 | I10: 1141030
A11: B.1 | B11: Technical & resource support | C11: =SUM(C12:C15) -> 218000 | D11: =SUM(D12:D15) -> 22500 | E11: 80000 | F11: 52500 | G11: 373000 | H11: 410300 | I11: 451330
A12: B.1.1 | B12: Equipment & chemicals | C12: 135000 | D12: 8000 | E12: 25000 | F12: 8000 | G12: =SUM(C12:F12) -> 176000 | H12: =G12*11/10 -> 193600 | I12: =H12*11/10 -> 212960
A13: B.1.2 | B13: Books, CDs & DVDs | C13: 20000 | D13: 500 | E13: 5000 | F13: 500 | G13: =SUM(C13:F13) -> 26000 | H13: =G13*11/10 -> 28600 | I13: 31460
A14: B.1.3 | B14: Other materials | C14: 13000 | D14: 4000 | E14: 4000 | F14: 4000 | G14: 25000 | H14: 27500 | I14: 30250
A15: B.1.4 | B15: Worksheets | C15: 50000 | D15: 10000 | E15: 46000 | F15: 40000 | G15: 146000 | H15: 160600 | I15: 176660
A16: B.2 | B16: Travel & Conveyance of Mobile lab | C16: =SUM(C17:C18) -> 12700 | D16: =SUM(D17:D18) -> 52600 | E16: 39700 | F16: 56000 | G16: 161000 | H16: 177100 | I16: 194810
A17: B.2.1 | B17: Vehicle travel | C17: 8700 | D17: 43600 | E17: 32700 | F17: 48000 | G17: =SUM(C17:F17) -> 133000 | H17: =G17*11/10 -> 146300 | I17: =H17*11/10 -> 160930
A18: B.2.2 | B18: Staff travel & food | C18: 4000 | D18: 9000 | E18: 7000 | F18: 8000 | G18: =SUM(C18:F18) -> 28000 | H18: =G18*11/10 -> 30800 | I18: =H18*11/10 -> 33880
A19: B.3 | B19: Capacity building | C19: =SUM(C20:C22) -> 5000 | D19: =SUM(D20:D22) -> 18000 | E19: 19000 | F19: 18000 | G19: 60000 | H19: 66000 | I19: 72600
A20: B.3.1 | B20: Teachers' training | C20: 2000 | D20: 12000 | E20: 10000 | F20: 12000 | G20: =SUM(C20:F20) -> 36000 | H20: =G20*11/10 -> 39600 | I20: =H20*11/10 -> 43560
A21: B.3.2 | B21: Staff training & exposure | C21: 3000 | D21: 0 | E21: 3000 | F21: 0 | G21: =SUM(C21:F21) -> 6000 | H21: =G21*11/10 -> 6600 | I21: 7260
A22: B.3.3 | B22: Students' training | C22: 0 | D22: 6000 | E22: 6000 | F22: 6000 | G22: 18000 | H22: =G22*11/10 -> 19800 | I22: 21780
A23: B.4 | B23: Events | C23: =SUM(C24:C27) -> 11000 | D23: =SUM(D24:D27) -> 48500 | E23: 113000 | F23: 85500 | G23: 258000 | H23: 283800 | I23: 312180
A24: B.4.1 | B24: School based events | C24: 2000 | D24: 12000 | E24: 8000 | F24: 7500 | G24: =SUM(C24:F24) -> 29500 | H24: =G24*11/10 -> 32450 | I24: =H24*11/10 -> 35695
A25: B.4.2 | B25: Science calendar | C25: 5000 | D25: 33500 | E25: 63000 | F25: 60000 | G25: =SUM(C25:F25) -> 161500 | H25: =G25*11/10 -> 177650 | I25: 195415
A26: B.4.3 | B26: Career guidance | C26: 2000 | D26: 0 | E26: 40000 | F26: 15000 | G26: 57000 | H26: =G26*11/10 -> 62700 | I26: 68970
A27: B.4.4 | B27: Community Radio Programs | C27: 2000 | D27: 3000 | E27: 2000 | F27: 3000 | G27: 10000 | H27: =G27*11/10 -> 11000 | I27: 12100
A28: B.5 | B28: Operational Expenses | C28: =SUM(C29:C35) -> 20900 | D28: =SUM(D29:D35) -> 13800 | E28: 18400 | F28: 37900 | G28: 91000 | H28: 100100 | I28: 110110
A29: B.5.1 | B29: Office rent | C29: 9000 | D29: 9000 | E29: 9000 | F29: 9000 | G29: =SUM(C29:F29) -> 36000 | H29: =G29*11/10 -> 39600 | I29: =H29*11/10 -> 43560
A30: B.5.2 | B30: Stationery & other expenses | C30: 3000 | D30: 3000 | E30: 3000 | F30: 3000 | G30: =SUM(C30:F30) -> 12000 | H30: =G30*11/10 -> 13200 | I30: 14520
A31: B.5.3 | B31: Phone calls | C31: 1800 | D31: 1800 | E31: 1800 | F31: 1800 | G31: 7200 | H31: 7920 | I31: 8712
A32: B.5.4 | B32: Annual report | C32: 0 | D32: 0 | E32: 0 | F32: 2000 | G32: 2000 | H32: 2200 | I32: 2420
A33: B.5.5 | B33: Teachers' meeting | C33: 2100 | D33: 0 | E33: 1600 | F33: 2100 | G33: 5800 | H33: 6380 | I33: 7018
A34: B.5.6 | B34: Website setup & maintenance | C34: 5000 | D34: 0 | E34: 3000 | F34: 0 | G34: 8000 | H34: 8800 | I34: 9680
A35: B.5.7 | B35: Accounting & Auditing Expenses | C35: 0 | D35: 0 | E35: 0 | F35: 20000 | G35: 20000 | H35: 22000 | I35: 24200
A36: C | B36: Capital cost | C36: =SUM(C37:C44) -> 877000 | D36: =SUM(D37:D44) -> 0 | E36: 30000 | F36: 0 | G36: 907000 | H36: 0 | I36: 0
A37: C.1 | B37: Mobile lab vehicle | C37: 675000 | D37: 0 | E37: 0 | F37: 0 | G37: =SUM(C37:F37) -> 675000 | H37: 0 | I37: 0
A38: C.2 | B38: Laptop & Projector | C38: 70000 | D38: 0 | E38: 0 | F38: 0 | G38: =SUM(C38:F38) -> 70000 | H38: 0 | I38: 0
A39: C.3 | B39: Office Computer & Printer | C39: 35000 | D39: 0 | E39: 0 | F39: 0 | G39: 35000 | H39: 0 | I39: 0
A40: C.4 | B40: Vehicle UPS system | C40: 30000 | D40: 0 | E40: 0 | F40: 0 | G40: 30000 | H40: 0 | I40: 0
A41: C.5 | B41: Vehicle & office equipment | C41: 45000 | D41: 0 | E41: 0 | F41: 0 | G41: 45000 | H41: 0 | I41: 0
A42: C.6 | B42: Phone | C42: 2000 | D42: 0 | E42: 0 | F42: 0 | G42: 2000 | H42: 0 | I42: 0
A43: C.7 | B43: Telescope assembly | C43: 10000 | D43: 0 | E43: 30000 | F43: 0 | G43: 40000 | H43: 0 | I43: 0
A44: C.8 | B44: Microscope & slides | C44: 10000 | D44: 0 | E44: 0 | F44: 0 | G44: 10000 | H44: 0 | I44: 0
B45: Total Budget | C45: =C4+C10+C36 -> 1279600 | D45: =D4+D10+D36 -> 290400 | E45: 435100 | F45: 384900 | G45: 2390000 | H45: 1631300 | I45: 1794430
